[Event "FRA-chT Top 12 2019"]
[Site "Brest"]
[Date "2019.05.27"]
[Round "10.3"]
[White "Kosten, Anthony C."]
[Black "Stevic, Hrvoje"]
[Result "0-1"]
[ECO "A09"]
[WhiteElo "2419"]
[BlackElo "2580"]
[Annotator "ChessBase"]
[PlyCount "66"]
[EventDate "2019.05.18"]
[EventType "team-tourn"]
[EventCountry "FRA"]
[SourceTitle "playchess.com"]
[Source "ChessBase"]
[SourceQuality "1"]
[TimeControl "40/5400+30:1800+30"]

1. Nf3 {[%emt 0:00:52]} d5 {[%emt 0:00:00]} 2. c4 {[%emt 0:00:09]} dxc4 {[%emt 0:00:00]} 3. e4 {[%emt 0:00:10]} Bg4 {[%emt 0:02:18]} 4. Bxc4 {[%emt 0:00:08]} e6 {[%emt 0:00:33]} 5. O-O {[%emt 0:00:11]} Nf6 {[%emt 0:02:04]} 6. e5 {[%emt 0:07:34]} Nd5 {[%emt 0:05:21]} 7. Qa4+ {[%emt 0:11:00]} Qd7 {[%emt 0:00:41]} 8. Bb5 {[%emt 0:00:14]} c6 {[%emt 0:00:05]} 9. Qxg4 {[%emt 0:01:46]} cxb5 {[%emt 0:00:04]} 10. Nc3 {[%emt 0:00:34]} b4 {[%emt 0:32:43]} 11. Ne4 {[%emt 0:05:14]} Nc6 {[%emt 0:00:16]} 12. d4 {[%emt 0:00:08]} f5 {[%emt 0:01:30]} 13. exf6 {[%emt 0:00:16]} gxf6 {[%emt 0:00:05]} 14. Re1 {[%emt 0:05:05]} O-O-O {[%emt 0:00:46]} 15. Ng3 {[%emt 0:02:15]} f5 {[%emt 0:08:35]} 16. Qh4 {[%emt 0:04:24]} Bd6 {[%emt 0:03:12]} 17. Bg5 {[%emt 0:01:49]} Rdg8 {[%emt 0:02:14]} 18. Nh5 {[%emt 0:19:07]} h6 {[%emt 0:08:03]} 19. Bf6 {[%emt 0:00:42]} Rg4 {[%emt 0:00:35]} 20. Qh3 {[%emt 0:00:57]} Rhg8 {[%emt 0:00:03]} 21. g3 {[%emt 0:02:56]} Qf7 {[%emt 0:00:54]} 22. Be5 {[%emt 0:03:30]} Bxe5 {[%emt 0:01:26]} 23. dxe5 {[%emt 0:04:40]} f4 {[%emt 0:02:57]} 24. Rf1 {[%emt 0:02:23]} Qf5 {[%emt 0:00:37]} 25. Kh1 {[%emt 0:01:46]} Qe4 {[%emt 0:07:49]} 26. Qg2 {[%emt 0:00:32]} Nxe5 {[%emt 0:00:55]} 27. Nxe5 {[%emt 0:05:41]} Qxe5 {[%emt 0:00:04]} 28. f3 {[%emt 0:00:13]} R4g5 {[%emt 0:12:25]} 29. Qc2+ {[%emt 0:01:47]} Kb8 {[%emt 0:00:18]} 30. gxf4 {[%emt 0:00:34]} Nxf4 {[%emt 0:00:41]} 31. Rae1 {[%emt 0:00:27]} Qd4 {[%emt 0:04:07]} 32. Nxf4 {[%emt 0:05:34]} Qxf4 {[%emt 0:00:02]} 33. Qe4 {[%emt 0:01:06]} Qxh2+ {[%emt 0:01:07]} 0-1

[Event "FRA-chT Top 12 2019"]
[Site "Brest"]
[Date "2019.05.27"]
[Round "10.3"]
[White "Lefebvre, Herve"]
[Black "Istratescu, Andrei"]
[Result "0-1"]
[ECO "A20"]
[WhiteElo "2291"]
[BlackElo "2555"]
[Annotator "ChessBase"]
[PlyCount "70"]
[EventDate "2019.05.18"]
[EventType "team-tourn"]
[EventCountry "FRA"]
[SourceTitle "playchess.com"]
[Source "ChessBase"]
[SourceQuality "1"]
[TimeControl "40/5400+30:1800+30"]

1. c4 {[%emt 0:00:00]} e5 {[%emt 0:01:59]} 2. g3 {[%emt 0:00:58]} d6 {[%emt 0:01:34]} 3. Bg2 {[%emt 0:02:03]} g6 {[%emt 0:00:55]} 4. Nc3 {[%emt 0:01:12]} Bg7 {[%emt 0:00:57]} 5. Nf3 {[%emt 0:01:08]} f5 {[%emt 0:02:32]} 6. d4 {[%emt 0:01:02]} e4 {[%emt 0:08:26]} 7. Ng5 {[%emt 0:04:22]} h6 {[%emt 0:01:41]} 8. Nh3 {[%emt 0:00:03]} g5 {[%emt 0:00:50]} 9. f3 {[%emt 0:07:27]} exf3 {[%emt 0:07:37]} 10. exf3 {[%emt 0:00:07]} Nf6 {[%emt 0:11:50]} 11. O-O {[%emt 0:09:23]} O-O {[%emt 0:02:13]} 12. f4 {[%emt 0:16:34]} g4 {[%emt 0:00:49]} 13. Nf2 {[%emt 0:00:29]} c6 {[%emt 0:00:25]} 14. Re1 {[%emt 0:02:19]} Re8 {[%emt 0:01:08]} 15. Rxe8+ {[%emt 0:07:30]} Nxe8 {[%emt 0:02:12]} 16. Be3 {[%emt 0:08:30]} Na6 {[%emt 0:00:50]} 17. Qd2 {[%emt 0:06:16]} Nac7 {[%emt 0:01:44]} 18. b4 {[%emt 0:08:13]} d5 {[%emt 0:10:21]} 19. c5 {[%emt 0:13:47]} Nf6 {[%emt 0:02:09]} 20. Nd3 {[%emt 0:02:39]} Ne4 {[%emt 0:08:23]} 21. Qb2 {[%emt 0:03:03]} Be6 {[%emt 0:03:58]} 22. a4 {[%emt 0:00:17]} a6 {[%emt 0:00:38]} 23. Ne5 {[%emt 0:00:57]} h5 {[%emt 0:00:28]} 24. Bf1 {[%emt 0:02:29]} h4 {[%emt 0:00:44]} 25. Nxe4 {[%emt 0:00:59]} dxe4 {[%emt 0:00:27]} 26. Rd1 {[%emt 0:00:35]} Bf6 {[%emt 0:04:58]} 27. b5 {[%emt 0:00:32]} axb5 {[%emt 0:01:05]} 28. axb5 {[%emt 0:00:02]} Ra2 {[%emt 0:00:28]} 29. Qb1 {[%emt 0:00:25]} Qa8 {[%emt 0:00:13]} 30. bxc6 {[%emt 0:00:24]} bxc6 {[%emt 0:00:07]} 31. Bc4 {[%emt 0:00:46]} Bxc4 {[%emt 0:03:25]} 32. Nxc4 {[%emt 0:00:03]} h3 {[%emt 0:01:54]} 33. Qb3 {[%emt 0:00:39]} Kg7 {[%emt 0:03:53]} 34. Rb1 {[%emt 0:00:47]} Nd5 {[%emt 0:02:29]} 35. Nb6 {[%emt 0:00:22]} Qa6 {[%emt 0:00:22]} 0-1

[Event "FRA-chT Top 12 2019"]
[Site "Brest"]
[Date "2019.05.27"]
[Round "10.4"]
[White "Hamdouchi, Hicham"]
[Black "Feller, Sebastien"]
[Result "0-1"]
[ECO "C65"]
[WhiteElo "2584"]
[BlackElo "2587"]
[Annotator "ChessBase"]
[PlyCount "80"]
[EventDate "2019.05.18"]
[EventType "team-tourn"]
[EventCountry "FRA"]
[SourceTitle "playchess.com"]
[Source "ChessBase"]
[SourceQuality "1"]
[TimeControl "40/5400+30:1800+30"]

1. e4 {[%emt 0:01:42]} e5 {[%emt 0:00:00]} 2. Nf3 {[%emt 0:00:25]} Nc6 {[%emt 0:00:00]} 3. Bb5 {[%emt 0:00:06]} Nf6 {[%emt 0:00:16]} 4. d3 {[%emt 0:00:40]} Bc5 {[%emt 0:00:39]} 5. Bxc6 {[%emt 0:00:18]} dxc6 {[%emt 0:00:06]} 6. h3 {[%emt 0:00:18]} O-O {[%emt 0:12:53]} 7. Be3 {[%emt 0:04:38]} Bd6 {[%emt 0:07:39]} 8. Nc3 {[%emt 0:01:35]} Nd7 {[%emt 0:09:44]} 9. O-O {[%emt 0:05:46]} Re8 {[%emt 0:04:23]} 10. d4 {[%emt 0:27:29]} exd4 {[%emt 0:03:26]} 11. Bxd4 {[%emt 0:01:23]} Bb4 {[%emt 0:21:08]} 12. a3 {[%emt 0:10:03]} Bf8 {[%emt 0:12:46]} 13. Re1 {[%emt 0:04:52]} Nc5 {[%emt 0:03:56]} 14. Be5 {[%emt 0:01:27]} Qe7 {[%emt 0:02:45]} 15. Bg3 {[%emt 0:01:34]} a5 {[%emt 0:04:38]} 16. Qd2 {[%emt 0:06:36]} Ne6 {[%emt 0:06:48]} 17. Rad1 {[%emt 0:05:18]} b5 {[%emt 0:02:41]} 18. Bh4 {[%emt 0:13:50]} Qd6 {[%emt 0:02:52]} 19. Qc1 {[%emt 0:00:17]} Qf4 {[%emt 0:01:23]} 20. Qxf4 {[%emt 0:01:32]} Nxf4 {[%emt 0:00:05]} 21. Bg3 {[%emt 0:00:15]} Ne6 {[%emt 0:00:09]} 22. Nb1 {[%emt 0:07:07]} Bb7 {[%emt 0:01:51]} 23. c3 {[%emt 0:02:41]} c5 {[%emt 0:00:22]} 24. Nbd2 {[%emt 0:01:11]} c4 {[%emt 0:00:04]} 25. Nd4 {[%emt 0:00:30]} Nxd4 {[%emt 0:01:03]} 26. cxd4 {[%emt 0:00:03]} c6 {[%emt 0:00:39]} 27. Bc7 {[%emt 0:00:45]} Rec8 {[%emt 0:00:28]} 28. Bb6 {[%emt 0:00:45]} c5 {[%emt 0:00:13]} 29. dxc5 {[%emt 0:00:42]} Bxc5 {[%emt 0:00:11]} 30. Bxc5 {[%emt 0:00:04]} Rxc5 {[%emt 0:00:07]} 31. Rc1 {[%emt 0:00:28]} Rc7 {[%emt 0:01:34]} 32. a4 {[%emt 0:00:38]} Rd8 {[%emt 0:00:25]} 33. Rc2 {[%emt 0:00:54]} c3 {[%emt 0:00:19]} 34. bxc3 {[%emt 0:00:31]} b4 {[%emt 0:00:15]} 35. Nb3 {[%emt 0:00:30]} Ba6 {[%emt 0:00:46]} 36. Nxa5 {[%emt 0:00:28]} bxc3 {[%emt 0:00:06]} 37. f3 {[%emt 0:00:38]} Rb8 {[%emt 0:00:23]} 38. Rd1 {[%emt 0:00:24]} g6 {[%emt 0:00:23]} 39. Rd6 {[%emt 0:00:35]} Rb2 {[%emt 0:00:10]} 40. Rc1 c2 0-1

[Event "FRA-chT Top 12 2019"]
[Site "Brest"]
[Date "2019.05.27"]
[Round "10.4"]
[White "Santos Ruiz, Miguel"]
[Black "Bailet, Pierre"]
[Result "1/2-1/2"]
[ECO "A13"]
[WhiteElo "2549"]
[BlackElo "2466"]
[Annotator "ChessBase"]
[PlyCount "75"]
[EventDate "2019.05.18"]
[EventType "team-tourn"]
[EventCountry "FRA"]
[SourceTitle "playchess.com"]
[Source "ChessBase"]
[SourceQuality "1"]
[TimeControl "40/5400+30:1800+30"]

1. c4 {[%emt 0:00:00]} e6 {[%emt 0:00:38]} 2. Nf3 {[%emt 0:00:00]} d5 {[%emt 0:00:24]} 3. e3 {[%emt 0:00:00]} Nf6 {[%emt 0:00:17]} 4. b3 {[%emt 0:00:00]} Be7 {[%emt 0:00:31]} 5. Bb2 {[%emt 0:00:03]} O-O {[%emt 0:00:18]} 6. Nc3 {[%emt 0:00:04]} c5 {[%emt 0:03:33]} 7. cxd5 {[%emt 0:00:16]} exd5 {[%emt 0:00:08]} 8. d4 {[%emt 0:00:16]} Nc6 {[%emt 0:00:11]} 9. Be2 {[%emt 0:00:08]} Ne4 {[%emt 0:01:26]} 10. dxc5 {[%emt 0:12:09]} Bf6 {[%emt 0:05:34]} 11. Nd4 {[%emt 0:08:26]} Nxc5 {[%emt 0:06:35]} 12. Nxc6 {[%emt 0:03:26]} bxc6 {[%emt 0:00:10]} 13. O-O {[%emt 0:01:09]} Be6 {[%emt 0:25:25]} 14. Qc2 {[%emt 0:16:38]} Qb6 {[%emt 0:06:50]} 15. Rac1 {[%emt 0:03:38]} Rfd8 {[%emt 0:03:14]} 16. Ba3 {[%emt 0:12:03]} d4 {[%emt 0:18:41]} 17. Nd5 {[%emt 0:01:17]} Rxd5 {[%emt 0:01:06]} 18. Bxc5 {[%emt 0:00:08]} Qa5 {[%emt 0:02:42]} 19. e4 {[%emt 0:07:36]} Rd7 {[%emt 0:08:34]} 20. Bd3 {[%emt 0:00:43]} g5 {[%emt 0:02:51]} 21. f3 {[%emt 0:12:48]} Kh8 {[%emt 0:00:45]} 22. g3 {[%emt 0:00:51]} Rg8 {[%emt 0:00:43]} 23. Kh1 {[%emt 0:01:17]} Qc7 {[%emt 0:02:08]} 24. Qf2 {[%emt 0:00:32]} Qa5 {[%emt 0:02:08]} 25. Rg1 {[%emt 0:09:06]} Rdd8 {[%emt 0:01:22]} 26. Qe2 {[%emt 0:02:19]} Be5 {[%emt 0:01:15]} 27. Qf2 {[%emt 0:01:49]} Bf6 {[%emt 0:00:15]} 28. Rge1 {[%emt 0:00:17]} Be5 {[%emt 0:00:42]} 29. Re2 {[%emt 0:02:20]} Qc7 {[%emt 0:00:54]} 30. Bb4 {[%emt 0:00:20]} Qb6 {[%emt 0:00:47]} 31. Bd2 {[%emt 0:00:17]} c5 {[%emt 0:01:32]} 32. f4 {[%emt 0:01:00]} gxf4 {[%emt 0:00:04]} 33. gxf4 {[%emt 0:00:02]} Bf6 {[%emt 0:00:09]} 34. Ree1 {[%emt 0:01:54]} a5 {[%emt 0:00:50]} 35. f5 {[%emt 0:01:20]} Bc8 {[%emt 0:00:27]} 36. Bc4 {[%emt 0:00:15]} Qc7 {[%emt 0:00:35]} 37. Bf4 {[%emt 0:01:03]} Be5 {[%emt 0:02:00]} 38. Bxe5+ {[%emt 0:00:59]} 1/2-1/2

[Event "FRA-chT Top 12 2019"]
[Site "Brest"]
[Date "2019.05.27"]
[Round "10.4"]
[White "Sokolov, Andrei"]
[Black "Payen, Arnaud"]
[Result "1/2-1/2"]
[ECO "B35"]
[WhiteElo "2516"]
[BlackElo "2358"]
[Annotator "ChessBase"]
[PlyCount "47"]
[EventDate "2019.05.18"]
[EventType "team-tourn"]
[EventCountry "FRA"]
[SourceTitle "playchess.com"]
[Source "ChessBase"]
[SourceQuality "1"]
[TimeControl "40/5400+30:1800+30"]

1. e4 {[%emt 0:00:00]} c5 {[%emt 0:00:00]} 2. Nf3 {[%emt 0:00:00]} g6 {[%emt 0:00:01]} 3. d4 {[%emt 0:01:25]} cxd4 {[%emt 0:00:23]} 4. Nxd4 {[%emt 0:00:11]} Nc6 {[%emt 0:00:13]} 5. Nc3 {[%emt 0:01:16]} Bg7 {[%emt 0:00:24]} 6. Be3 {[%emt 0:00:07]} Nf6 {[%emt 0:00:20]} 7. Bc4 {[%emt 0:01:10]} Qa5 {[%emt 0:00:27]} 8. O-O {[%emt 0:11:29]} O-O {[%emt 0:01:03]} 9. Bb3 {[%emt 0:06:28]} d6 {[%emt 0:00:22]} 10. h3 {[%emt 0:09:22]} Bd7 {[%emt 0:00:30]} 11. Re1 {[%emt 0:07:28]} Rfc8 {[%emt 0:02:43]} 12. Nf3 {[%emt 0:04:19]} Qh5 {[%emt 0:07:49]} 13. Bf4 {[%emt 0:11:58]} Ne5 {[%emt 0:23:35]} 14. Nxe5 {[%emt 0:19:32]} dxe5 {[%emt 0:00:21]} 15. Qxh5 {[%emt 0:00:40]} Nxh5 {[%emt 0:00:19]} 16. Be3 {[%emt 0:01:05]} e6 {[%emt 0:05:43]} 17. Red1 {[%emt 0:06:12]} Be8 {[%emt 0:00:44]} 18. a4 {[%emt 0:00:20]} Bf8 {[%emt 0:05:52]} 19. f3 {[%emt 0:07:57]} Bc5 {[%emt 0:10:49]} 20. Bxc5 {[%emt 0:00:08]} Rxc5 {[%emt 0:00:08]} 21. h4 {[%emt 0:00:16]} Nf6 {[%emt 0:00:58]} 22. Ne2 {[%emt 0:01:43]} Rc7 {[%emt 0:02:49]} 23. c3 {[%emt 0:04:39]} a5 {[%emt 0:08:31]} 24. Bc2 {[%emt 0:00:17]} 1/2-1/2

[Event "FRA-chT Top 12 2019"]
[Site "Brest"]
[Date "2019.05.27"]
[Round "10.4"]
[White "Barseghyan, Harutyun"]
[Black "Ribbegren, Karl Johan"]
[Result "1-0"]
[ECO "A43"]
[WhiteElo "2470"]
[BlackElo "2209"]
[Annotator "ChessBase"]
[PlyCount "85"]
[EventDate "2019.05.18"]
[EventType "team-tourn"]
[EventCountry "FRA"]
[SourceTitle "playchess.com"]
[Source "ChessBase"]
[SourceQuality "1"]
[TimeControl "40/5400+30:1800+30"]

1. d4 {[%emt 0:00:00]} Nf6 {[%emt 0:00:00]} 2. Nf3 {[%emt 0:00:00]} c5 {[%emt 0:01:26]} 3. d5 {[%emt 0:00:00]} g6 4. c4 {[%emt 0:00:20]} Bg7 {[%emt 0:01:51]} 5. Nc3 {[%emt 0:00:11]} O-O {[%emt 0:00:47]} 6. e4 {[%emt 0:00:09]} d6 {[%emt 0:00:27]} 7. Bd3 {[%emt 0:00:25]} e5 {[%emt 0:04:49]} 8. h3 {[%emt 0:01:36]} Na6 {[%emt 0:01:50]} 9. Bg5 {[%emt 0:00:37]} h6 {[%emt 0:01:24]} 10. Be3 {[%emt 0:00:02]} Nc7 {[%emt 0:04:27]} 11. Qd2 {[%emt 0:00:11]} Kh7 {[%emt 0:00:40]} 12. g4 {[%emt 0:00:08]} Ng8 {[%emt 0:02:52]} 13. Rg1 {[%emt 0:04:46]} a6 {[%emt 0:09:56]} 14. a4 {[%emt 0:04:02]} Bd7 {[%emt 0:01:16]} 15. a5 {[%emt 0:00:05]} Rb8 {[%emt 0:01:11]} 16. h4 {[%emt 0:02:26]} b5 {[%emt 0:02:46]} 17. axb6 {[%emt 0:00:26]} Rxb6 {[%emt 0:00:11]} 18. h5 {[%emt 0:00:06]} g5 {[%emt 0:05:46]} 19. Nh2 {[%emt 0:07:10]} Qb8 {[%emt 0:04:22]} 20. Ra2 {[%emt 0:00:11]} Qb7 {[%emt 0:01:45]} 21. Nd1 {[%emt 0:00:42]} Rb4 {[%emt 0:03:26]} 22. Qc2 {[%emt 0:00:09]} Ra8 {[%emt 0:04:32]} 23. Bd2 {[%emt 0:00:10]} Rb3 {[%emt 0:01:18]} 24. Ba5 {[%emt 0:00:43]} Ne8 {[%emt 0:01:27]} 25. Nf1 {[%emt 0:00:09]} Qb8 {[%emt 0:02:39]} 26. Nd2 {[%emt 0:00:07]} Rb7 {[%emt 0:00:32]} 27. Ne3 {[%emt 0:02:30]} Bf6 {[%emt 0:02:37]} 28. Ke2 {[%emt 0:00:23]} Bd8 {[%emt 0:01:35]} 29. Bc3 {[%emt 0:00:08]} a5 {[%emt 0:00:36]} 30. Rga1 {[%emt 0:00:08]} a4 {[%emt 0:04:07]} 31. Qd1 {[%emt 0:00:30]} Ba5 {[%emt 0:21:50]} 32. Bc2 {[%emt 0:00:15]} Nef6 {[%emt 0:00:40]} 33. f3 {[%emt 0:01:55]} Bxc3 {[%emt 0:02:57]} 34. bxc3 {[%emt 0:00:02]} Rb2 {[%emt 0:01:38]} 35. Bxa4 {[%emt 0:02:18]} Rxa2 {[%emt 0:01:56]} 36. Rxa2 {[%emt 0:00:05]} Qa7 {[%emt 0:00:54]} 37. Bb3 {[%emt 0:00:17]} Qb7 {[%emt 0:00:11]} 38. Qa1 {[%emt 0:00:22]} Rxa2 {[%emt 0:00:33]} 39. Qxa2 {[%emt 0:00:01]} Ne7 {[%emt 0:00:31]} 40. Qa5 {[%emt 0:00:34]} Qb8 {[%emt 0:01:44]} 41. Ba4 {[%emt 0:32:27]} Bc8 {[%emt 0:35:20]} 42. Qd8 {[%emt 0:02:54]} Neg8 {[%emt 0:00:00]} 43. Bb5 {[%emt 0:00:00]} 1-0

[Event "FRA-chT Top 12 2019"]
[Site "Brest"]
[Date "2019.05.27"]
[Round "10.5"]
[White "Fedorchuk, Sergey A."]
[Black "Libiszewski, Fabien"]
[Result "1/2-1/2"]
[ECO "C09"]
[WhiteElo "2620"]
[BlackElo "2511"]
[Annotator "RC"]
[PlyCount "81"]
[EventDate "2019.05.18"]
[EventType "team-tourn"]
[EventCountry "FRA"]
[SourceTitle "playchess.com"]
[Source "ChessBase"]
[SourceQuality "1"]
[TimeControl "40/5400+30:1800+30"]

1. e4 {[%emt 0:00:40]} e6 {[%emt 0:00:31]} 2. d4 {[%emt 0:00:42]} d5 {[%emt 0:00:06]} 3. Nd2 {[%emt 0:00:20]} c5 {[%emt 0:00:28]} 4. Ngf3 {[%emt 0:02:59]} Nc6 {[%emt 0:00:38]} 5. exd5 {[%emt 0:03:02]} exd5 {[%emt 0:00:18]} 6. Bb5 {[%emt 0:00:33]} Qe7+ {[%emt 0:00:23]} 7. Be2 {[%emt 0:02:10]} Nf6 {[%emt 0:01:00]} 8. O-O {[%emt 0:00:41]} Qc7 {[%emt 0:00:26]} 9. Re1 {[%emt 0:03:53]} cxd4 {[%emt 0:01:35]} 10. Nb3 {[%emt 0:02:10]} Bb4 {[%emt 0:00:35]} 11. Bd2 {[%emt 0:03:09]} Bxd2 {[%emt 0:00:14]} 12. Qxd2 {[%emt 0:00:09]} O-O {[%emt 0:00:07]} 13. Bd3 {[%emt 0:00:27]} Bg4 {[%emt 0:10:54]} 14. Nfxd4 {[%emt 0:09:50]} Rfe8 {[%emt 0:10:01]} 15. Nb5 {[%emt 0:10:20]} Qb6 {[%emt 0:23:02]} 16. Qf4 {[%emt 0:03:46]} a6 {[%emt 0:09:54]} 17. Nc7 {[%emt 0:07:09]} Rxe1+ {[%emt 0:01:45]} 18. Rxe1 {[%emt 0:00:04]} Rd8 {[%emt 0:00:22]} 19. h3 {[%emt 0:21:52]} Bc8 {[%emt 0:08:09]} 20. c4 {[%emt 0:09:23]} Qb4 {[%emt 0:03:46]} 21. Re3 {[%emt 0:03:45]} dxc4 {[%emt 0:07:53]} 22. Bxc4 {[%emt 0:01:59]} Nd4 {[%emt 0:15:49]} 23. Ne8 {[%emt 0:11:51]} Qxc4 {[%emt 0:01:18]} 24. Nxf6+ {[%emt 0:00:05]} gxf6 {[%emt 0:00:06]} 25. Kh2 {[%emt 0:00:01]} Qd5 {[%emt 0:02:19]} 26. Nxd4 {[%emt 0:01:27]} Qxd4 27. Re8+ Kg7 {[%emt 0:00:23]} 28. Qxd4 {[%emt 0:00:47]} Rxd4 {[%emt 0:00:01]} 29. Rxc8 {[%emt 0:00:05]} Rd2 {[%emt 0:00:03]} 30. b4 {[%emt 0:00:13]} Rxa2 {[%emt 0:00:36]} 31. Rb8 b5 32. f3 {[%emt 0:00:41]} Rb2 {[%emt 0:00:36]} 33. Rb6 {[%emt 0:00:07]} Rxb4 {[%emt 0:00:06]} 34. Rxa6 {[%emt 0:00:03]} h5 {[%emt 0:00:07]} 35. g4 {[%emt 0:00:44]} h4 {[%emt 0:00:38]} 36. Rb6 {[%emt 0:00:04]} Rb2+ {[%emt 0:00:20]} 37. Kg1 b4 {[%emt 0:00:49]} 38. f4 {[%emt 0:00:20]} b3 {[%emt 0:02:21]} 39. Rb8 {[%emt 0:00:58]} Kg6 {[%emt 0:00:36]} 40. Rb6 Kh7 {[%emt 0:00:00]} 41. Rb7 {[%emt 0:30:56]} 1/2-1/2

[Event "FRA-chT Top 12 2019"]
[Site "Brest"]
[Date "2019.05.27"]
[Round "10.5"]
[White "Godart, Francois"]
[Black "Ludwig, Remi"]
[Result "1-0"]
[ECO "C01"]
[WhiteElo "2419"]
[BlackElo "2312"]
[Annotator "NA"]
[PlyCount "61"]
[EventDate "2019.05.18"]
[EventType "team-tourn"]
[EventCountry "FRA"]
[SourceTitle "playchess.com"]
[Source "ChessBase"]
[SourceQuality "1"]
[TimeControl "40/5400+30:1800+30"]

1. e4 {[%emt 0:00:00]} e6 {[%emt 0:00:00]} 2. d4 {[%emt 0:00:00]} d5 {[%emt 0:00:00]} 3. exd5 {[%emt 0:00:14]} exd5 {[%emt 0:00:00]} 4. Nf3 {[%emt 0:00:04]} Bg4 {[%emt 0:00:35]} 5. h3 {[%emt 0:01:23]} Bh5 {[%emt 0:01:29]} 6. Qe2+ {[%emt 0:00:46]} Qe7 {[%emt 0:02:07]} 7. Be3 {[%emt 0:02:45]} Nc6 {[%emt 0:01:08]} 8. Nc3 {[%emt 0:10:19]} O-O-O {[%emt 0:04:14]} 9. O-O-O {[%emt 0:00:59]} Nf6 {[%emt 0:16:26]} 10. g4 {[%emt 0:03:54]} Bg6 {[%emt 0:02:51]} 11. Ne5 {[%emt 0:01:15]} Qe8 {[%emt 0:09:49]} 12. h4 {[%emt 0:26:29]} h6 {[%emt 0:02:58]} 13. Nxg6 {[%emt 0:06:52]} fxg6 {[%emt 0:00:08]} 14. Bg2 {[%emt 0:02:25]} Bb4 {[%emt 0:12:59]} 15. g5 {[%emt 0:01:37]} hxg5 {[%emt 0:10:35]} 16. hxg5 {[%emt 0:00:37]} Rxh1 {[%emt 0:02:14]} 17. Rxh1 Nh5 {[%emt 0:10:50]} 18. Nxd5 {[%emt 0:09:33]} Kb8 {[%emt 0:00:20]} 19. Nxb4 {[%emt 0:03:10]} Nxb4 {[%emt 0:00:07]} 20. Qc4 {[%emt 0:00:37]} Nc6 {[%emt 0:03:50]} 21. Rh4 {[%emt 0:01:48]} Qd7 {[%emt 0:07:59]} 22. Re4 {[%emt 0:03:37]} a6 {[%emt 0:03:05]} 23. d5 {[%emt 0:01:48]} Ne7 {[%emt 0:00:40]} 24. Qc5 {[%emt 0:02:48]} Nc8 {[%emt 0:00:04]} 25. b3 {[%emt 0:03:21]} Qd6 {[%emt 0:02:30]} 26. Qxd6 {[%emt 0:01:10]} cxd6 {[%emt 0:02:11]} 27. Bf3 {[%emt 0:02:34]} Rf8 {[%emt 0:01:27]} 28. Bg4 {[%emt 0:00:12]} Kc7 {[%emt 0:00:15]} 29. Rc4+ {[%emt 0:00:26]} Kb8 {[%emt 0:00:09]} 30. Bxc8 {[%emt 0:00:13]} Rxc8 {[%emt 0:00:06]} 31. Ba7+ {[%emt 0:00:07]} 1-0

[Event "FRA-chT Top 12 2019"]
[Site "Brest"]
[Date "2019.05.27"]
[Round "10.5"]
[White "Dornbusch, Tatiana"]
[Black "Rambaldi, Francesco"]
[Result "0-1"]
[ECO "A40"]
[WhiteElo "2285"]
[BlackElo "2558"]
[Annotator "ChessBase"]
[PlyCount "110"]
[EventDate "2019.05.18"]
[EventType "team-tourn"]
[EventCountry "FRA"]
[SourceTitle "playchess.com"]
[Source "ChessBase"]
[SourceQuality "1"]
[TimeControl "40/5400+30:1800+30"]

1. d4 {[%emt 0:00:00]} g6 {[%emt 0:00:00]} 2. c4 {[%emt 0:01:06]} Bg7 {[%emt 0:00:02]} 3. Nf3 {[%emt 0:01:01]} d6 {[%emt 0:00:50]} 4. Nc3 {[%emt 0:10:03]} Bg4 {[%emt 0:06:25]} 5. g3 {[%emt 0:01:27]} Qc8 {[%emt 0:06:54]} 6. Bg2 {[%emt 0:07:34]} Bh3 {[%emt 0:01:31]} 7. O-O {[%emt 0:00:08]} Nc6 {[%emt 0:02:48]} 8. d5 {[%emt 0:04:38]} Ne5 {[%emt 0:03:11]} 9. Nxe5 {[%emt 0:01:16]} Bxe5 {[%emt 0:00:09]} 10. Qa4+ {[%emt 0:10:56]} Kf8 {[%emt 0:05:28]} 11. Qc2 {[%emt 0:01:32]} h5 {[%emt 0:00:43]} 12. Ne4 {[%emt 0:13:47]} Bxg2 {[%emt 0:11:17]} 13. Kxg2 {[%emt 0:01:12]} h4 {[%emt 0:00:05]} 14. Ng5 {[%emt 0:03:41]} Bf6 {[%emt 0:00:57]} 15. e4 {[%emt 0:06:11]} Bxg5 {[%emt 0:09:28]} 16. Bxg5 {[%emt 0:02:32]} Qg4 {[%emt 0:00:26]} 17. Qc3 {[%emt 0:07:53]} Rh5 {[%emt 0:04:05]} 18. Bf4 {[%emt 0:01:17]} hxg3 {[%emt 0:07:01]} 19. Qxg3 {[%emt 0:00:00]} Qe2 {[%emt 0:00:21]} 20. Qe3 {[%emt 0:05:20]} Qg4+ {[%emt 0:08:10]} 21. Qg3 {[%emt 0:03:04]} Qe2 {[%emt 0:01:17]} 22. Qe3 {[%emt 0:00:03]} Qxe3 {[%emt 0:00:09]} 23. Bxe3 {[%emt 0:00:51]} f5 {[%emt 0:00:57]} 24. f3 {[%emt 0:01:44]} Nf6 {[%emt 0:00:07]} 25. Bd4 {[%emt 0:00:58]} Nd7 {[%emt 0:00:55]} 26. exf5 {[%emt 0:03:09]} Rxf5 {[%emt 0:00:13]} 27. Rae1 {[%emt 0:00:33]} c6 {[%emt 0:00:44]} 28. dxc6 {[%emt 0:06:55]} bxc6 {[%emt 0:00:05]} 29. f4 {[%emt 0:00:30]} a5 {[%emt 0:01:37]} 30. Re3 {[%emt 0:01:45]} Kf7 {[%emt 0:01:00]} 31. Rfe1 {[%emt 0:00:50]} Re8 {[%emt 0:00:16]} 32. Kg3 {[%emt 0:02:31]} g5 {[%emt 0:00:24]} 33. fxg5 {[%emt 0:01:02]} Rxg5+ {[%emt 0:01:09]} 34. Kf2 {[%emt 0:00:05]} e5 {[%emt 0:01:03]} 35. Bc3 {[%emt 0:00:27]} Nc5 {[%emt 0:06:12]} 36. Rg1 {[%emt 0:00:56]} Rf5+ {[%emt 0:02:55]} 37. Rf3 {[%emt 0:00:02]} Kf6 {[%emt 0:00:52]} 38. Rxf5+ {[%emt 0:00:32]} Kxf5 {[%emt 0:00:02]} 39. Ke3 {[%emt 0:00:39]} Rh8 {[%emt 0:00:15]} 40. Bxa5 {[%emt 0:01:04]} Rxh2 {[%emt 0:02:40]} 41. Bb4 {[%emt 0:08:41]} Rh3+ {[%emt 0:05:21]} 42. Ke2 {[%emt 0:01:43]} Rh2+ {[%emt 0:01:16]} 43. Ke3 {[%emt 0:01:26]} Rh3+ {[%emt 0:00:08]} 44. Ke2 {[%emt 0:00:04]} Nd3 {[%emt 0:11:34]} 45. Bxd6 {[%emt 0:00:47]} Nxb2 {[%emt 0:01:22]} 46. c5 {[%emt 0:06:05]} Ke4 {[%emt 0:06:45]} 47. Rg4+ {[%emt 0:03:51]} Kd5 {[%emt 0:00:09]} 48. Rb4 {[%emt 0:03:50]} Rh2+ {[%emt 0:02:57]} 49. Kf1 {[%emt 0:01:02]} Nc4 {[%emt 0:00:34]} 50. Ra4 {[%emt 0:01:41]} Rb2 {[%emt 0:04:39]} 51. Be7 {[%emt 0:04:30]} e4 {[%emt 0:02:11]} 52. Ra7 {[%emt 0:01:20]} e3 {[%emt 0:02:12]} 53. Bg5 {[%emt 0:01:35]} Nd2+ {[%emt 0:01:09]} 54. Ke2 {[%emt 0:00:04]} Ne4+ {[%emt 0:00:04]} 55. Kxe3 {[%emt 0:00:03]} Nxg5 {[%emt 0:00:04] Kd4+} 0-1